[Event "Titled Tuesday Blitz March 01 Late 2022"]
[White "Nilsen, Tobias Lang"]
[Black "Kozak, Adam"]
[WhiteFideId "1521624"]
[BlackFideId "753246"]
[WhiteElo "2013"]
[BlackElo "2459"]
[Result "0-1"]
[Round "01"]
[TimeControl "180+1"]
[Date "2022.03.02"]
[WhiteClock "0:00:30"]
[BlackClock "0:01:30"]

1. f4 {[%clk 0:02:59]}  c6 {[%clk 0:02:57]} 2. Nf3 {[%clk 0:02:58]}  d5 {[%clk 0:02:53]} 3. g3 {[%clk 0:02:58]}  Nf6 {[%clk 0:02:53]} 4. Bg2 {[%clk 0:02:59]}  Qb6 {[%clk 0:02:53]} 5. d3 {[%clk 0:02:57]}  g6 {[%clk 0:02:51]} 6. Nc3 {[%clk 0:02:57]}  Bg7 {[%clk 0:02:50]} 7. e4 {[%clk 0:02:57]}  dxe4 {[%clk 0:02:50]} 8. dxe4 {[%clk 0:02:57]}  Na6 {[%clk 0:02:44]} 9. Qe2 {[%clk 0:02:56]}  Bg4 {[%clk 0:02:39]} 10. e5 {[%clk 0:02:50]}  Nd5 {[%clk 0:02:38]} 11. Nxd5 {[%clk 0:02:49]}  cxd5 {[%clk 0:02:39]} 12. h3 {[%clk 0:02:48]}  Bxf3 {[%clk 0:02:34]} 13. Bxf3 {[%clk 0:02:49]}  e6 {[%clk 0:02:34]} 14. Qf2 {[%clk 0:02:48]}  Qxf2+ {[%clk 0:02:33]} 15. Kxf2 {[%clk 0:02:49]}  Nb4 {[%clk 0:02:32]} 16. c3 {[%clk 0:02:40]}  Nd3+ {[%clk 0:02:32]} 17. Ke2 {[%clk 0:02:40]}  Nc5 {[%clk 0:02:31]} 18. Be3 {[%clk 0:02:39]}  Rc8 {[%clk 0:02:31]} 19. Rhd1 {[%clk 0:02:36]}  h5 {[%clk 0:02:30]} 20. Rac1 {[%clk 0:02:34]}  h4 {[%clk 0:02:29]} 21. g4 {[%clk 0:02:32]}  b5 {[%clk 0:02:25]} 22. Bd4 {[%clk 0:02:23]}  a6 {[%clk 0:02:24]} 23. g5 {[%clk 0:02:23]}  Nd7 {[%clk 0:02:22]} 24. b3 {[%clk 0:02:22]}  Bf8 {[%clk 0:02:21]} 25. Kd3 {[%clk 0:02:20]}  Ba3 {[%clk 0:02:20]} 26. Rc2 {[%clk 0:02:19]}  Bc5 {[%clk 0:02:14]} 27. c4 {[%clk 0:02:12]}  bxc4+ {[%clk 0:02:05]} 28. bxc4 {[%clk 0:02:12]}  Bxd4 {[%clk 0:02:05]} 29. Kxd4 {[%clk 0:02:11]}  Nb6 {[%clk 0:01:59]} 30. c5 {[%clk 0:02:03]}  Nc4 {[%clk 0:01:59]} 31. Be2 {[%clk 0:01:59]}  Na5 {[%clk 0:01:40]} 32. Bxa6 {[%clk 0:01:51]}  Nc6+ {[%clk 0:01:39]} 33. Ke3 {[%clk 0:01:51]}  Ra8 {[%clk 0:01:38]} 34. Bb5 {[%clk 0:01:38]}  Kd7 {[%clk 0:01:34]} 35. Rb1 {[%clk 0:01:32]}  Rhb8 {[%clk 0:01:32]} 36. Rcb2 {[%clk 0:01:31]}  Kc7 {[%clk 0:01:31]} 37. a4 {[%clk 0:01:23]}  Na5 {[%clk 0:01:31]} 38. Kd4 {[%clk 0:01:21]}  Rb7 {[%clk 0:01:30]} 39. Rc1 {[%clk 0:01:07]}  Nc6+ {[%clk 0:01:29]} 40. Kd3 {[%clk 0:01:04]}  Rxa4 {[%clk 0:01:28]} 41. Bxc6 {[%clk 0:00:29]}  Ra3+ {[%clk 0:01:27]} 42. Rc3 {[%clk 0:00:24]}  Rxc3+ {[%clk 0:01:25]} 43. Kxc3 {[%clk 0:00:25]}  Rxb2 {[%clk 0:01:25]} 44. Kxb2 {[%clk 0:00:26]}  Kxc6 {[%clk 0:01:25]} 45. Kc3 {[%clk 0:00:24]}  Kxc5 {[%clk 0:01:26]} 46. Kd3 {[%clk 0:00:25]}  d4 {[%clk 0:01:26]} 47. Kd2 {[%clk 0:00:23]}  Kd5 {[%clk 0:01:26]} 48. Kd3 {[%clk 0:00:24]}  Kc5 {[%clk 0:01:26]} 49. Kd2 {[%clk 0:00:24]}  Kc4 {[%clk 0:01:27]} 50. Kc2 {[%clk 0:00:25]}  d3+ {[%clk 0:01:27]} 51. Kc1 {[%clk 0:00:24]}  Kd4 {[%clk 0:01:27]} 52. Kd2 {[%clk 0:00:24]}  Ke4 {[%clk 0:01:28]} 53. Kc3 {[%clk 0:00:24]}  Kxf4 {[%clk 0:01:28]} 54. Kxd3 {[%clk 0:00:25]}  Kxe5 {[%clk 0:01:28]} 55. Ke3 {[%clk 0:00:25]}  Kf5 {[%clk 0:01:29]} 56. Kf3 {[%clk 0:00:26]}  Kxg5 {[%clk 0:01:29]} 57. Ke4 {[%clk 0:00:26]}  f6 {[%clk 0:01:29]} 58. Kf3 {[%clk 0:00:27]}  f5 {[%clk 0:01:29]} 59. Ke3 {[%clk 0:00:28]}  e5 {[%clk 0:01:29]} 60. Kf3 {[%clk 0:00:29]}  e4+ {[%clk 0:01:30]} 61. Ke3 {[%clk 0:00:30]}  Kf6 {[%clk 0:01:30]} 0-1


[Site "https://www.chess.com"]

[Event "Titled Tuesday Blitz March 01 Late 2022"]
[White "Ohanyan, Emin"]
[Black "Mikhalsky, Vladimir"]
[WhiteFideId "13312022"]
[BlackFideId "14144352"]
[WhiteElo "1809"]
[BlackElo "2248"]
[Result "1-0"]
[Round "01"]
[TimeControl "180+1"]
[Date "2022.03.02"]
[WhiteClock "0:00:07"]
[BlackClock "0:00:06"]

1. e4 {[%clk 0:02:47]}  g6 {[%clk 0:02:58]} 2. d4 {[%clk 0:02:12]}  Bg7 {[%clk 0:02:58]} 3. Nc3 {[%clk 0:01:48]}  d6 {[%clk 0:02:56]} 4. f4 {[%clk 0:01:07]}  a6 {[%clk 0:02:50]} 5. Nf3 {[%clk 0:01:05]}  b5 {[%clk 0:02:50]} 6. Bd3 {[%clk 0:01:00]}  Bb7 {[%clk 0:02:48]} 7. e5 {[%clk 0:00:58]}  Nd7 {[%clk 0:02:47]} 8. Be4 {[%clk 0:00:58]}  Qc8 {[%clk 0:02:44]} 9. Qe2 {[%clk 0:00:45]}  Nb6 {[%clk 0:02:34]} 10. O-O {[%clk 0:00:43]}  Nh6 {[%clk 0:02:31]} 11. Bxb7 {[%clk 0:00:27]}  Qxb7 {[%clk 0:02:31]} 12. Ne4 {[%clk 0:00:28]}  O-O {[%clk 0:02:16]} 13. c3 {[%clk 0:00:28]}  Rac8 {[%clk 0:02:13]} 14. Ng3 {[%clk 0:00:27]}  c5 {[%clk 0:02:09]} 15. f5 {[%clk 0:00:17]}  Nxf5 {[%clk 0:02:03]} 16. Nxf5 {[%clk 0:00:17]}  gxf5 {[%clk 0:02:02]} 17. e6 {[%clk 0:00:18]}  Qe4 {[%clk 0:01:49]} 18. Qxe4 {[%clk 0:00:15]}  fxe4 {[%clk 0:01:49]} 19. Ng5 {[%clk 0:00:16]}  cxd4 {[%clk 0:01:30]} 20. exf7+ {[%clk 0:00:15]}  Kh8 {[%clk 0:01:30]} 21. Nxe4 {[%clk 0:00:15]}  d5 {[%clk 0:01:27]} 22. Ng5 {[%clk 0:00:14]}  dxc3 {[%clk 0:01:26]} 23. bxc3 {[%clk 0:00:12]}  Bxc3 {[%clk 0:01:24]} 24. Rb1 {[%clk 0:00:12]}  Rc6 {[%clk 0:01:11]} 25. Bb2 {[%clk 0:00:07]}  Na4 {[%clk 0:01:10]} 26. Bxc3+ {[%clk 0:00:05]}  Nxc3 {[%clk 0:01:10]} 27. Rbe1 {[%clk 0:00:06]}  Ne4 {[%clk 0:00:58]} 28. Nxe4 {[%clk 0:00:06]}  dxe4 {[%clk 0:00:58]} 29. Rxe4 {[%clk 0:00:07]}  Rf6 {[%clk 0:00:56]} 30. Rxe7 {[%clk 0:00:06]}  Kg7 {[%clk 0:00:54]} 31. Rxf6 {[%clk 0:00:04]}  Kxf6 {[%clk 0:00:53]} 32. Ra7 {[%clk 0:00:05]}  Rxf7 {[%clk 0:00:49]} 33. Rxa6+ {[%clk 0:00:05]}  Kg7 {[%clk 0:00:41]} 34. h4 {[%clk 0:00:04]}  Rf4 {[%clk 0:00:37]} 35. g3 {[%clk 0:00:04]}  Rc4 {[%clk 0:00:36]} 36. Kg2 {[%clk 0:00:04]}  h5 {[%clk 0:00:28]} 37. Kf3 {[%clk 0:00:03]}  b4 {[%clk 0:00:25]} 38. Ra5 {[%clk 0:00:02]}  Kg6 {[%clk 0:00:24]} 39. Ra6+ {[%clk 0:00:02]}  Kg7 {[%clk 0:00:24]} 40. Ra4 {[%clk 0:00:02]}  Kg6 {[%clk 0:00:22]} 41. Kg2 {[%clk 0:00:02]}  Kf5 {[%clk 0:00:22]} 42. Kh3 {[%clk 0:00:02]}  Kg6 {[%clk 0:00:22]} 43. a3 {[%clk 0:00:02]}  Rc1 {[%clk 0:00:19]} 44. Rxb4 {[%clk 0:00:02]}  Rh1+ {[%clk 0:00:19]} 45. Kg2 {[%clk 0:00:02]}  Ra1 {[%clk 0:00:19]} 46. a4 {[%clk 0:00:03]}  Ra2+ {[%clk 0:00:19]} 47. Kh3 {[%clk 0:00:03]}  Ra1 {[%clk 0:00:18]} 48. Rb6+ {[%clk 0:00:03]}  Kf5 {[%clk 0:00:18]} 49. Ra6 {[%clk 0:00:04]}  Rh1+ {[%clk 0:00:17]} 50. Kg2 {[%clk 0:00:04]}  Ra1 {[%clk 0:00:16]} 51. Rh6 {[%clk 0:00:05]}  Rxa4 {[%clk 0:00:15]} 52. Rxh5+ {[%clk 0:00:05]}  Ke4 {[%clk 0:00:15]} 53. Rg5 {[%clk 0:00:05]}  Ra1 {[%clk 0:00:15]} 54. Rg4+ {[%clk 0:00:05]}  Kf5 {[%clk 0:00:13]} 55. Rf4+ {[%clk 0:00:06]}  Ke5 {[%clk 0:00:13]} 56. Kh3 {[%clk 0:00:06]}  Rh1+ {[%clk 0:00:13]} 57. Kg4 {[%clk 0:00:07]}  Rg1 {[%clk 0:00:13]} 58. h5 {[%clk 0:00:07]}  Rh1 {[%clk 0:00:13]} 59. Kg5 {[%clk 0:00:06]}  Rg1 {[%clk 0:00:12]} 60. g4 {[%clk 0:00:06]}  Ra1 {[%clk 0:00:09]} 61. h6 {[%clk 0:00:06]}  Rh1 {[%clk 0:00:09]} 62. Rf5+ {[%clk 0:00:05]}  Ke4 {[%clk 0:00:09]} 63. Kg6 {[%clk 0:00:06]}  Rh4 {[%clk 0:00:08]} 64. g5 {[%clk 0:00:05]}  Rh1 {[%clk 0:00:07]} 65. h7 {[%clk 0:00:04]}  Rxh7 {[%clk 0:00:06]} 66. Kxh7 {[%clk 0:00:04]}  Kxf5 {[%clk 0:00:06]} 67. g6 {[%clk 0:00:05]}  Kf6 {[%clk 0:00:06]} 68. g7 {[%clk 0:00:06]}  Kf7 {[%clk 0:00:06]} 69. g8=Q+ {[%clk 0:00:07]} 1-0


[Site "https://www.chess.com"]

[Event "Titled Tuesday Blitz March 01 Late 2022"]
[White "Pace, Christopher"]
[Black "Karttunen, Mika"]
[WhiteFideId "2610167"]
[BlackFideId "502081"]
[WhiteElo "2213"]
[BlackElo "2343"]
[Result "0-1"]
[Round "01"]
[TimeControl "180+1"]
[Date "2022.03.02"]
[WhiteClock "0:00:04"]
[BlackClock "0:00:17"]

1. d4 {[%clk 0:02:52]}  Nf6 {[%clk 0:02:58]} 2. c4 {[%clk 0:02:51]}  g6 {[%clk 0:02:57]} 3. Nf3 {[%clk 0:02:46]}  Bg7 {[%clk 0:02:57]} 4. g3 {[%clk 0:02:13]}  O-O {[%clk 0:02:56]} 5. Bg2 {[%clk 0:02:14]}  d6 {[%clk 0:02:56]} 6. O-O {[%clk 0:02:14]}  c6 {[%clk 0:02:57]} 7. Nc3 {[%clk 0:02:14]}  Bf5 {[%clk 0:02:56]} 8. Re1 {[%clk 0:02:10]}  Ne4 {[%clk 0:02:55]} 9. Nh4 {[%clk 0:02:04]}  Nxc3 {[%clk 0:02:50]} 10. bxc3 {[%clk 0:02:05]}  Bc8 {[%clk 0:02:46]} 11. Rb1 {[%clk 0:02:03]}  Nd7 {[%clk 0:02:42]} 12. e4 {[%clk 0:02:02]}  Qa5 {[%clk 0:02:36]} 13. Qb3 {[%clk 0:01:46]}  Bxd4 {[%clk 0:02:29]} 14. Bh6 {[%clk 0:01:44]}  Bg7 {[%clk 0:02:28]} 15. Bxg7 {[%clk 0:01:44]}  Kxg7 {[%clk 0:02:28]} 16. f4 {[%clk 0:01:43]}  Nc5 {[%clk 0:02:26]} 17. Qc2 {[%clk 0:01:42]}  Be6 {[%clk 0:02:03]} 18. e5 {[%clk 0:01:33]}  Bxc4 {[%clk 0:01:58]} 19. Qd2 {[%clk 0:01:31]}  d5 {[%clk 0:01:15]} 20. f5 {[%clk 0:01:30]}  Rae8 {[%clk 0:00:46]} 21. e6 {[%clk 0:01:29]}  f6 {[%clk 0:00:42]} 22. Rb2 {[%clk 0:00:37]}  Nd3 {[%clk 0:00:29]} 23. Rxb7 {[%clk 0:00:24]}  Nxe1 {[%clk 0:00:27]} 24. Qxe1 {[%clk 0:00:25]}  Qc5+ {[%clk 0:00:25]} 25. Kh1 {[%clk 0:00:24]}  Rb8 {[%clk 0:00:20]} 26. Rd7 {[%clk 0:00:23]}  Bxa2 {[%clk 0:00:17]} 27. Bf3 {[%clk 0:00:03]}  Rb1 {[%clk 0:00:17]} 28. Bd1 {[%clk 0:00:04]}  Bb3 {[%clk 0:00:17]} 0-1


[Site "https://www.chess.com"]

[Event "Titled Tuesday Blitz March 01 Late 2022"]
[White "Pakleza, Zbigniew"]
[Black "Koutlas, Nikolaos"]
[WhiteFideId "1119290"]
[BlackFideId "25827138"]
[WhiteElo "2467"]
[BlackElo "1610"]
[Result "1-0"]
[Round "01"]
[TimeControl "180+1"]
[Date "2022.03.02"]
[WhiteClock "0:02:46"]
[BlackClock "0:02:09"]

1. d4 {[%clk 0:03:00]}  Nf6 {[%clk 0:02:59]} 2. Nf3 {[%clk 0:03:00]}  d5 {[%clk 0:02:58]} 3. Bf4 {[%clk 0:03:01]}  c5 {[%clk 0:02:58]} 4. c3 {[%clk 0:03:01]}  Nc6 {[%clk 0:02:58]} 5. Nbd2 {[%clk 0:03:01]}  Qb6 {[%clk 0:02:56]} 6. Qb3 {[%clk 0:03:01]}  Bf5 {[%clk 0:02:53]} 7. dxc5 {[%clk 0:03:01]}  Qxb3 {[%clk 0:02:39]} 8. axb3 {[%clk 0:03:01]}  Nd7 {[%clk 0:02:35]} 9. b4 {[%clk 0:03:01]}  e5 {[%clk 0:02:36]} 10. Bg3 {[%clk 0:03:02]}  f6 {[%clk 0:02:31]} 11. e3 {[%clk 0:03:01]}  h5 {[%clk 0:02:19]} 12. h3 {[%clk 0:02:56]}  Kf7 {[%clk 0:02:15]} 13. Bb5 {[%clk 0:02:54]}  a5 {[%clk 0:02:12]} 14. Nb3 {[%clk 0:02:47]}  axb4 {[%clk 0:02:09]} 15. Rxa8 {[%clk 0:02:46]} 1-0


[Site "https://www.chess.com"]

[Event "Titled Tuesday Blitz March 01 Late 2022"]
[White "Peatman, Carter"]
[Black "Dronavalli, Harika"]
[WhiteFideId "2096480"]
[BlackFideId "5015197"]
[WhiteElo "2291"]
[BlackElo "2382"]
[Result "0-1"]
[Round "01"]
[TimeControl "180+1"]
[Date "2022.03.02"]
[WhiteClock "0:00:01"]
[BlackClock "0:00:46"]

1. d4 {[%clk 0:02:59]}  Nf6 {[%clk 0:02:59]} 2. Nf3 {[%clk 0:02:59]}  e6 {[%clk 0:02:59]} 3. Bf4 {[%clk 0:02:58]}  d5 {[%clk 0:02:51]} 4. e3 {[%clk 0:02:41]}  Bd6 {[%clk 0:02:50]} 5. Bg3 {[%clk 0:02:35]}  c5 {[%clk 0:02:50]} 6. c3 {[%clk 0:02:30]}  Qc7 {[%clk 0:02:50]} 7. Bb5+ {[%clk 0:02:17]}  Nbd7 {[%clk 0:02:48]} 8. Nbd2 {[%clk 0:02:07]}  O-O {[%clk 0:02:47]} 9. Qe2 {[%clk 0:02:03]}  a6 {[%clk 0:02:46]} 10. Ba4 {[%clk 0:02:00]}  b5 {[%clk 0:02:44]} 11. Bc2 {[%clk 0:01:54]}  e5 {[%clk 0:02:44]} 12. dxe5 {[%clk 0:01:47]}  Nxe5 {[%clk 0:02:44]} 13. Nxe5 {[%clk 0:01:35]}  Bxe5 {[%clk 0:02:44]} 14. Nf3 {[%clk 0:01:31]}  Bxg3 {[%clk 0:02:37]} 15. hxg3 {[%clk 0:01:31]}  h6 {[%clk 0:02:37]} 16. Rd1 {[%clk 0:01:26]}  Re8 {[%clk 0:02:28]} 17. a4 {[%clk 0:01:12]}  Rb8 {[%clk 0:02:19]} 18. axb5 {[%clk 0:01:07]}  axb5 {[%clk 0:02:19]} 19. Nh4 {[%clk 0:01:03]}  Qe5 {[%clk 0:02:03]} 20. Qd3 {[%clk 0:00:53]}  b4 {[%clk 0:01:59]} 21. O-O {[%clk 0:00:48]}  bxc3 {[%clk 0:01:46]} 22. bxc3 {[%clk 0:00:48]}  Rb2 {[%clk 0:01:38]} 23. Rb1 {[%clk 0:00:43]}  c4 {[%clk 0:01:28]} 24. Qd1 {[%clk 0:00:20]}  Qxc3 {[%clk 0:01:20]} 25. Rc1 {[%clk 0:00:18]}  Qe5 {[%clk 0:01:18]} 26. Qf3 {[%clk 0:00:16]}  Bg4 {[%clk 0:01:17]} 27. Qf4 {[%clk 0:00:16]}  Qxf4 {[%clk 0:01:13]} 28. gxf4 {[%clk 0:00:14]}  Ra8 {[%clk 0:01:13]} 29. Bf5 {[%clk 0:00:09]}  Raa2 {[%clk 0:01:10]} 30. Rb1 {[%clk 0:00:01]}  g6 {[%clk 0:00:46]} 0-1


[Site "https://www.chess.com"]

[Event "Titled Tuesday Blitz March 01 Late 2022"]
[White "Przybylski, Wojciech"]
[Black "Saraci, Nderim"]
[WhiteFideId "1117599"]
[BlackFideId "6351921"]
[WhiteElo "2133"]
[BlackElo "2573"]
[Result "0-1"]
[Round "01"]
[TimeControl "180+1"]
[Date "2022.03.01"]
[WhiteClock "0:00:06"]
[BlackClock "0:01:06"]

1. e4 {[%clk 0:02:58]}  c5 {[%clk 0:02:59]} 2. Nf3 {[%clk 0:02:57]}  e6 {[%clk 0:02:59]} 3. b3 {[%clk 0:02:57]}  Nf6 {[%clk 0:02:59]} 4. e5 {[%clk 0:02:56]}  Nd5 {[%clk 0:02:59]} 5. Nc3 {[%clk 0:02:53]}  Nxc3 {[%clk 0:02:58]} 6. dxc3 {[%clk 0:02:53]}  b6 {[%clk 0:02:59]} 7. Bd3 {[%clk 0:02:50]}  Bb7 {[%clk 0:02:59]} 8. Bb2 {[%clk 0:02:40]}  g6 {[%clk 0:02:59]} 9. h4 {[%clk 0:02:34]}  Bg7 {[%clk 0:02:57]} 10. h5 {[%clk 0:02:32]}  Bxf3 {[%clk 0:02:57]} 11. Qxf3 {[%clk 0:02:08]}  Nc6 {[%clk 0:02:57]} 12. Be4 {[%clk 0:01:47]}  Nxe5 {[%clk 0:02:44]} 13. Qe2 {[%clk 0:01:40]}  d5 {[%clk 0:02:41]} 14. h6 {[%clk 0:00:59]}  Bf6 {[%clk 0:02:37]} 15. O-O-O {[%clk 0:00:56]}  Qe7 {[%clk 0:02:33]} 16. f4 {[%clk 0:00:45]}  Nd7 {[%clk 0:01:57]} 17. Bf3 {[%clk 0:00:43]}  O-O {[%clk 0:01:57]} 18. g4 {[%clk 0:00:39]}  Rfe8 {[%clk 0:01:54]} 19. Kb1 {[%clk 0:00:22]}  Rac8 {[%clk 0:01:54]} 20. g5 {[%clk 0:00:19]}  Bh8 {[%clk 0:01:53]} 21. Rhe1 {[%clk 0:00:19]}  Qd6 {[%clk 0:01:50]} 22. Qe3 {[%clk 0:00:17]}  c4 {[%clk 0:01:48]} 23. b4 {[%clk 0:00:13]}  a5 {[%clk 0:01:44]} 24. a3 {[%clk 0:00:13]}  axb4 {[%clk 0:01:44]} 25. cxb4 {[%clk 0:00:13]}  Bxb2 {[%clk 0:01:42]} 26. Kxb2 {[%clk 0:00:14]}  c3+ {[%clk 0:01:40]} 27. Kb3 {[%clk 0:00:09]}  Qc6 {[%clk 0:01:14]} 28. Rd4 {[%clk 0:00:07]}  Ra8 {[%clk 0:01:12]} 29. Ra1 {[%clk 0:00:06]}  Qa4+ {[%clk 0:01:07]} 30. Ka2 {[%clk 0:00:06]}  Qxc2# {[%clk 0:01:06]} 0-1


[Site "https://www.chess.com"]

[Event "Titled Tuesday Blitz March 01 Late 2022"]
[White "Quesada Perez, Yuniesky"]
[Black "Petrovic, Aleksa"]
[WhiteFideId "3504409"]
[BlackFideId "967629"]
[WhiteElo "2622"]
[BlackElo "2139"]
[Result "1-0"]
[Round "01"]
[TimeControl "180+1"]
[Date "2022.03.01"]
[WhiteClock "0:00:11"]
[BlackClock "0:00:03"]

1. e4 {[%clk 0:03:00]}  c5 {[%clk 0:02:58]} 2. Nf3 {[%clk 0:02:59]}  Nc6 {[%clk 0:02:58]} 3. Bb5 {[%clk 0:02:58]}  e6 {[%clk 0:02:58]} 4. O-O {[%clk 0:02:55]}  Nge7 {[%clk 0:02:58]} 5. Re1 {[%clk 0:02:55]}  a6 {[%clk 0:02:56]} 6. Bf1 {[%clk 0:02:55]}  b5 {[%clk 0:02:52]} 7. c3 {[%clk 0:02:54]}  d5 {[%clk 0:02:51]} 8. exd5 {[%clk 0:02:47]}  Nxd5 {[%clk 0:02:50]} 9. a4 {[%clk 0:02:45]}  Rb8 {[%clk 0:02:40]} 10. axb5 {[%clk 0:02:44]}  axb5 {[%clk 0:02:41]} 11. d4 {[%clk 0:02:44]}  c4 {[%clk 0:02:18]} 12. Nbd2 {[%clk 0:02:39]}  Be7 {[%clk 0:02:17]} 13. Ne4 {[%clk 0:02:39]}  O-O {[%clk 0:02:15]} 14. g3 {[%clk 0:02:36]}  Bb7 {[%clk 0:02:14]} 15. h4 {[%clk 0:02:36]}  Ra8 {[%clk 0:02:14]} 16. Bg5 {[%clk 0:02:32]}  Rxa1 {[%clk 0:02:05]} 17. Qxa1 {[%clk 0:02:33]}  Qa8 {[%clk 0:02:05]} 18. Nc5 {[%clk 0:02:16]}  Bxc5 {[%clk 0:01:59]} 19. dxc5 {[%clk 0:02:15]}  Qxa1 {[%clk 0:01:56]} 20. Rxa1 {[%clk 0:02:15]}  Ra8 {[%clk 0:01:57]} 21. Rxa8+ {[%clk 0:02:10]}  Bxa8 {[%clk 0:01:58]} 22. Nd2 {[%clk 0:02:07]}  f6 {[%clk 0:01:51]} 23. Be3 {[%clk 0:02:04]}  Nxe3 {[%clk 0:01:50]} 24. fxe3 {[%clk 0:02:04]}  Ne5 {[%clk 0:01:48]} 25. b4 {[%clk 0:01:52]}  Nf3+ {[%clk 0:01:04]} 26. Nxf3 {[%clk 0:01:47]}  Bxf3 {[%clk 0:01:05]} 27. Bg2 {[%clk 0:01:44]}  Bxg2 {[%clk 0:00:59]} 28. Kxg2 {[%clk 0:01:45]}  Kf7 {[%clk 0:00:59]} 29. Kf3 {[%clk 0:01:45]}  e5 {[%clk 0:00:55]} 30. c6 {[%clk 0:01:19]}  Ke6 {[%clk 0:00:52]} 31. c7 {[%clk 0:01:19]}  Kd7 {[%clk 0:00:52]} 32. Ke4 {[%clk 0:01:20]}  Kxc7 {[%clk 0:00:49]} 33. Kd5 {[%clk 0:01:20]}  Kb6 {[%clk 0:00:18]} 34. Kd6 {[%clk 0:01:12]}  h5 {[%clk 0:00:17]} 35. e4 {[%clk 0:00:54]}  Kb7 {[%clk 0:00:12]} 36. Ke6 {[%clk 0:00:37]}  Kc6 {[%clk 0:00:12]} 37. Kf7 {[%clk 0:00:36]}  f5 {[%clk 0:00:10]} 38. exf5 {[%clk 0:00:34]}  e4 {[%clk 0:00:11]} 39. Kxg7 {[%clk 0:00:25]}  e3 {[%clk 0:00:11]} 40. f6 {[%clk 0:00:26]}  e2 {[%clk 0:00:12]} 41. f7 {[%clk 0:00:27]}  e1=Q {[%clk 0:00:12]} 42. f8=Q {[%clk 0:00:28]}  Qxg3+ {[%clk 0:00:12]} 43. Kh6 {[%clk 0:00:23]}  Qxh4 {[%clk 0:00:07]} 44. Qc5+ {[%clk 0:00:22]}  Kd7 {[%clk 0:00:06]} 45. Qxb5+ {[%clk 0:00:22]}  Ke6 {[%clk 0:00:07]} 46. Qc6+ {[%clk 0:00:20]}  Ke5 {[%clk 0:00:06]} 47. Qc5+ {[%clk 0:00:19]}  Ke6 {[%clk 0:00:06]} 48. Qc8+ {[%clk 0:00:14]}  Kd6 {[%clk 0:00:06]} 49. Qa6+ {[%clk 0:00:13]}  Kc7 {[%clk 0:00:04]} 50. Qa5+ {[%clk 0:00:13]}  Kc6 {[%clk 0:00:04]} 51. Qc5+ {[%clk 0:00:13]}  Kd7 {[%clk 0:00:04]} 52. Qxh5 {[%clk 0:00:12]}  Qf6+ {[%clk 0:00:03]} 53. Qg6 {[%clk 0:00:12]}  Qh4+ {[%clk 0:00:03]} 54. Kg7 {[%clk 0:00:11]}  Kc7 {[%clk 0:00:02]} 55. Kf7 {[%clk 0:00:09]}  Qf4+ {[%clk 0:00:01]} 56. Qf6 {[%clk 0:00:09]}  Qe3 {[%clk 0:00:02]} 57. Qe7+ {[%clk 0:00:08]}  Qxe7+ {[%clk 0:00:02]} 58. Kxe7 {[%clk 0:00:09]}  Kc6 {[%clk 0:00:02]} 59. Ke6 {[%clk 0:00:10]}  Kb5 {[%clk 0:00:02]} 60. Kd5 {[%clk 0:00:11]}  Ka4 {[%clk 0:00:03]} 61. Kxc4 {[%clk 0:00:11]} 1-0


[Site "https://www.chess.com"]

[Event "Titled Tuesday Blitz March 01 Late 2022"]
[White "Romanchuk, Viktor"]
[Black "Dubov, Daniil"]
[WhiteFideId "14109271"]
[BlackFideId "24126055"]
[WhiteElo "2242"]
[BlackElo "2791"]
[Result "0-1"]
[Round "01"]
[TimeControl "180+1"]
[Date "2022.03.01"]
[WhiteClock "0:00:10"]
[BlackClock "0:00:09"]

1. d4 {[%clk 0:03:00]}  Nf6 {[%clk 0:02:59]} 2. c4 {[%clk 0:02:59]}  d5 {[%clk 0:02:58]} 3. Nc3 {[%clk 0:02:58]}  e6 {[%clk 0:02:55]} 4. Nf3 {[%clk 0:02:58]}  c6 {[%clk 0:02:50]} 5. e3 {[%clk 0:02:58]}  Nbd7 {[%clk 0:02:49]} 6. Qc2 {[%clk 0:02:58]}  Bd6 {[%clk 0:02:47]} 7. b3 {[%clk 0:02:58]}  O-O {[%clk 0:02:43]} 8. Bb2 {[%clk 0:02:57]}  dxc4 {[%clk 0:02:32]} 9. Bxc4 {[%clk 0:02:55]}  b5 {[%clk 0:02:31]} 10. Be2 {[%clk 0:02:41]}  Bb7 {[%clk 0:02:30]} 11. O-O {[%clk 0:02:41]}  Rc8 {[%clk 0:02:29]} 12. Rfd1 {[%clk 0:02:41]}  Qe7 {[%clk 0:02:20]} 13. Ne4 {[%clk 0:02:38]}  Nxe4 {[%clk 0:02:16]} 14. Qxe4 {[%clk 0:02:39]}  Nf6 {[%clk 0:02:11]} 15. Qh4 {[%clk 0:02:38]}  c5 {[%clk 0:02:08]} 16. Bxb5 {[%clk 0:02:26]}  Bxf3 {[%clk 0:02:06]} 17. gxf3 {[%clk 0:02:26]}  Qb7 {[%clk 0:02:01]} 18. dxc5 {[%clk 0:01:43]}  Be7 {[%clk 0:01:58]} 19. Bd3 {[%clk 0:01:41]}  h6 {[%clk 0:01:50]} 20. Rac1 {[%clk 0:01:32]}  Qxf3 {[%clk 0:01:40]} 21. Bxf6 {[%clk 0:01:26]}  Bxf6 {[%clk 0:01:39]} 22. Qe4 {[%clk 0:01:25]}  Qxe4 {[%clk 0:01:37]} 23. Bxe4 {[%clk 0:01:26]}  Rc7 {[%clk 0:01:34]} 24. c6 {[%clk 0:01:24]}  Rfc8 {[%clk 0:01:35]} 25. Rc4 {[%clk 0:01:22]}  Kf8 {[%clk 0:01:34]} 26. Rd7 {[%clk 0:01:07]}  Rxd7 {[%clk 0:01:24]} 27. cxd7 {[%clk 0:01:08]}  Rxc4 {[%clk 0:01:24]} 28. bxc4 {[%clk 0:01:07]}  Ke7 {[%clk 0:01:25]} 29. Bc6 {[%clk 0:01:07]}  Kd6 {[%clk 0:01:25]} 30. Bb5 {[%clk 0:01:07]}  Bd8 {[%clk 0:01:21]} 31. h3 {[%clk 0:01:05]}  Kc5 {[%clk 0:01:21]} 32. Kg2 {[%clk 0:01:02]}  Kb6 {[%clk 0:01:20]} 33. Kf3 {[%clk 0:00:57]}  a6 {[%clk 0:01:20]} 34. Ba4 {[%clk 0:00:56]}  Kc5 {[%clk 0:01:19]} 35. Bb3 {[%clk 0:00:56]}  Kc6 {[%clk 0:01:19]} 36. Ba4+ {[%clk 0:00:56]}  Kc5 {[%clk 0:01:19]} 37. Bb3 {[%clk 0:00:56]}  Bc7 {[%clk 0:01:13]} 38. Ke4 {[%clk 0:00:55]}  f5+ {[%clk 0:01:08]} 39. Kd3 {[%clk 0:00:55]}  g5 {[%clk 0:01:07]} 40. e4 {[%clk 0:00:49]}  g4 {[%clk 0:00:59]} 41. hxg4 {[%clk 0:00:33]}  fxg4 {[%clk 0:01:00]} 42. Ke2 {[%clk 0:00:32]}  h5 {[%clk 0:00:51]} 43. Kf1 {[%clk 0:00:31]}  Kd6 {[%clk 0:00:38]} 44. Ba4 {[%clk 0:00:24]}  Ke5 {[%clk 0:00:37]} 45. Bc6 {[%clk 0:00:19]}  h4 {[%clk 0:00:33]} 46. Kg2 {[%clk 0:00:18]}  Kf4 {[%clk 0:00:30]} 47. c5 {[%clk 0:00:16]}  Ke5 {[%clk 0:00:23]} 48. Kh1 {[%clk 0:00:13]}  Kd4 {[%clk 0:00:21]} 49. Bb7 {[%clk 0:00:13]}  a5 {[%clk 0:00:17]} 50. c6 {[%clk 0:00:13]}  Kxe4 {[%clk 0:00:17]} 51. Ba6 {[%clk 0:00:13]}  Kf3 {[%clk 0:00:14]} 52. Kg1 {[%clk 0:00:13]}  Bb6 {[%clk 0:00:14]} 53. c7 {[%clk 0:00:14]}  Bxc7 {[%clk 0:00:13]} 54. Bb7+ {[%clk 0:00:14]}  Kf4 {[%clk 0:00:13]} 55. Bc6 {[%clk 0:00:13]}  Bb6 {[%clk 0:00:13]} 56. Kf1 {[%clk 0:00:13]}  h3 {[%clk 0:00:12]} 57. Bb7 {[%clk 0:00:13]}  e5 {[%clk 0:00:12]} 58. Bc6 {[%clk 0:00:12]}  e4 {[%clk 0:00:12]} 59. Bd5 {[%clk 0:00:12]}  Kf3 {[%clk 0:00:11]} 60. Be6 {[%clk 0:00:12]}  h2 {[%clk 0:00:09]} 61. Bxg4+ {[%clk 0:00:11]}  Kxg4 {[%clk 0:00:09]} 62. Kg2 {[%clk 0:00:11]}  Bc7 {[%clk 0:00:10]} 63. a4 {[%clk 0:00:09]}  Kf5 {[%clk 0:00:09]} 64. Kh1 {[%clk 0:00:09]}  Ke6 {[%clk 0:00:09]} 65. d8=Q {[%clk 0:00:09]}  Bxd8 {[%clk 0:00:09]} 66. Kxh2 {[%clk 0:00:09]}  Kf5 {[%clk 0:00:09]} 67. Kg2 {[%clk 0:00:10]}  Bc7 {[%clk 0:00:09]} 0-1


[Site "https://www.chess.com"]